bitfinex/quotes_BTCUSD_20250522
["timestamp","ask_amount","ask_price","bid_price","bid_amount"]
[1747892355992,9.834e-05,111410.0,111400.0,0.92601962]
[1747892358921,0.21551738,111410.0,111400.0,0.62103536]
[1747892359133,0.21551738,111410.0,111400.0,0.82749757]
[1747892359134,9.834e-05,111410.0,111400.0,0.82749757]
[1747892359354,0.19756593,111410.0,111400.0,0.82749765]
[1747892359571,0.19756593,111410.0,111400.0,0.81852148]
[1747892359572,0.2065413,111410.0,111400.0,0.81852148]
[1747892359839,0.19756593,111410.0,111400.0,0.82749765]
[1747892360056,0.20654138,111410.0,111400.0,0.82749773]
[1747892360272,0.19756593,111410.0,111400.0,0.82749773]
[1747892360651,0.19756592,111410.0,111400.0,0.82749773]
[1747892361199,0.19756592,111410.0,111400.0,0.81852148]
[1747892361407,9.834e-05,111410.0,111400.0,0.80056857]
[1747892361611,9.834e-05,111410.0,111400.0,0.91704313]
[1747892361812,0.00907346,111410.0,111400.0,0.91704313]
[1747892362638,9.834e-05,111410.0,111400.0,0.91704313]
[1747892363101,0.25714202,111410.0,111400.0,0.36073838]
[1747892363304,0.51736673,111410.0,111400.0,0.004]
[1747892363513,1.09367661,111410.0,111400.0,0.004]
[1747892363739,1.36851444,111410.0,111400.0,0.004]
[1747892364179,1.37688315,111410.0,111400.0,0.002]
[1747892364395,1.37688315,111410.0,111400.0,0.003]
[1747892364625,1.37688315,111410.0,111400.0,0.001]
[1747892364854,0.36062185,111410.0,111400.0,0.001]
[1747892365113,0.346081,111410.0,111400.0,0.001]
[1747892365343,0.49206673,111410.0,111400.0,0.001]
[1747892365563,0.51706673,111410.0,111400.0,0.001]
[1747892366361,0.60661229,111410.0,111400.0,0.001]
[1747892367686,0.62115314,111410.0,111400.0,0.001]
[1747892368323,0.60661229,111410.0,111400.0,0.001]
[1747892368880,0.33741229,111410.0,111400.0,0.001]
[1747892369100,0.88742673,111410.0,111400.0,0.001]
[1747892370552,0.97697229,111410.0,111400.0,0.001]
[1747892371334,0.33741229,111410.0,111400.0,0.001]
[1747892371490,0.97701229,111410.0,111400.0,0.001]
[1747892372026,0.97691395,111410.0,111400.0,0.001]
[1747892373720,0.18847784,111420.0,111400.0,1.07703234]
[1747892373945,0.21541905,111410.0,111400.0,0.52950987]
[1747892374209,0.20644328,111410.0,111400.0,0.53848636]
[1747892374422,0.02692619,111410.0,111400.0,0.54746277]
[1747892374637,0.00897521,111410.0,111400.0,0.56541519]
[1747892374861,0.02692627,111410.0,111400.0,0.56441519]
[1747892375146,0.02692627,111410.0,111400.0,0.82571217]
[1747892375382,0.02692627,111410.0,111400.0,0.82471217]
[1747892375816,0.98771071,111440.0,111430.0,0.34]
[1747892376016,0.69104224,111440.0,111430.0,0.80670345]
[1747892376221,0.7089883,111440.0,111430.0,0.80670345]
[1747892376427,0.04305519,111440.0,111430.0,0.79772977]
[1747892376634,0.04305519,111440.0,111430.0,0.80670345]
[1747892376841,0.00948224,111440.0,111430.0,0.80670345]
[1747892377047,0.00050937,111440.0,111430.0,0.80670345]
[1747892377887,0.00550937,111440.0,111430.0,0.83140345]
[1747892378284,0.00950937,111440.0,111430.0,1.09270043]
[1747892378459,0.00050937,111440.0,111430.0,0.83040345]
[1747892378663,0.00250937,111440.0,111430.0,0.83040345]
[1747892378865,0.00350937,111440.0,111430.0,0.83040345]
[1747892379598,0.00350937,111440.0,111430.0,0.34]
[1747892379798,0.23021268,111430.0,111420.0,0.26029698]
[1747892380033,0.25261341,111430.0,111420.0,0.60029698]
[1747892380452,0.19746783,111410.0,111390.0,0.21484546]
[1747892380622,0.20644328,111410.0,111400.0,0.00897658]
[1747892380878,0.17951709,111410.0,111400.0,0.20646237]
[1747892381089,0.1884923,111410.0,111400.0,0.54646245]
[1747892381257,0.17951709,111410.0,111400.0,0.55543862]
[1747892381614,0.17951709,111410.0,111400.0,0.80675943]
[1747892381826,0.18849238,111410.0,111400.0,0.80675943]
[1747892382026,0.18849238,111410.0,111400.0,0.60029698]
[1747892382238,0.1795132,111420.0,111410.0,0.34897577]
[1747892382438,0.02692336,111420.0,111410.0,0.78878984]
[1747892382644,0.20642426,111420.0,111410.0,0.80674074]
[1747892382863,0.01794872,111420.0,111410.0,0.81571603]
[1747892383121,0.22096823,111410.0,111400.0,0.26329698]
[1747892383275,0.18850979,111400.0,111390.0,0.2919655]
[1747892383476,0.26898506,111400.0,111390.0,0.2919655]
[1747892383731,0.26904654,111420.0,111400.0,0.17953321]
[1747892383929,0.00897464,111420.0,111410.0,0.79776545]
[1747892384104,0.28714896,111420.0,111410.0,0.79776553]
[1747892384287,0.28714896,111420.0,111410.0,0.80674114]
[1747892384492,0.29663305,111420.0,111410.0,0.79776545]
[1747892384818,0.29663305,111420.0,111410.0,0.81571627]
[1747892385019,0.28765833,111420.0,111410.0,0.82669164]
[1747892385346,0.00948369,111420.0,111410.0,0.82669164]
[1747892385547,0.01845817,111420.0,111410.0,0.82669164]
[1747892385758,0.00948385,111420.0,111410.0,0.82869164]
[1747892386266,0.23488475,111420.0,111410.0,0.344]
[1747892386496,0.33340543,111420.0,111410.0,0.004]
[1747892387603,0.33340543,111420.0,111410.0,0.002]
[1747892388035,0.21279286,111410.0,111400.0,0.60029698]
[1747892388239,0.19746775,111410.0,111400.0,0.60927356]
[1747892388457,0.20486492,111410.0,111400.0,0.60927364]
[1747892388654,0.58190567,111420.0,111400.0,0.81573601]
[1747892388861,0.60620567,111420.0,111410.0,0.26029698]
[1747892389071,0.58200567,111420.0,111410.0,0.26029698]
[1747892389224,0.49146011,111420.0,111410.0,0.26029698]
[1747892389436,0.50043387,111420.0,111410.0,0.26029698]
[1747892389642,0.51838363,111420.0,111410.0,0.26029698]
[1747892389874,0.51838363,111420.0,111400.0,0.54646212]
[1747892390120,0.50940931,111420.0,111410.0,0.26029698]
[1747892390696,0.50043475,111420.0,111410.0,0.26029698]
[1747892391106,0.50243475,111420.0,111410.0,0.26029698]
[1747892391326,0.601707,111420.0,111410.0,0.34]
[1747892391502,0.60490543,111420.0,111410.0,0.34]
[1747892395245,0.29050543,111420.0,111410.0,0.34]
[1747892395449,0.48810891,111420.0,111410.0,0.60029698]
[1747892396030,0.48810891,111420.0,111410.0,0.77981407]
[1747892396253,0.20095923,111420.0,111410.0,0.79776553]
[1747892396460,0.48810875,111420.0,111410.0,0.78878992]
[1747892396664,0.49708371,111420.0,111410.0,0.79776569]
[1747892396889,0.49708435,111420.0,111410.0,0.79776569]
[1747892397212,0.22788435,111420.0,111410.0,0.79776569]
[1747892397517,0.00350937,111420.0,111410.0,0.80672025]
[1747892397682,0.00350937,111420.0,111410.0,0.95156207]
[1747892398662,0.00150937,111420.0,111410.0,0.92796207]
[1747892399160,0.00150937,111420.0,111410.0,1.96906007]
[1747892399382,0.00150937,111420.0,111410.0,1.99618585]
[1747892399383,0.00050937,111420.0,111410.0,1.99618585]
[1747892399593,0.00050937,111420.0,111410.0,1.99818585]
[1747892399803,0.18844489,111440.0,111410.0,1.99818585]
[1747892399804,0.0089719,111450.0,111440.0,0.20637524]
[1747892400035,0.0089719,111450.0,111440.0,0.45769943]
[1747892400036,0.0180968,111450.0,111440.0,0.45769943]
[1747892400213,0.0180968,111450.0,111440.0,0.47564525]
[1747892400410,0.00912465,111450.0,111440.0,0.47564525]
[1747892400659,0.02706886,111450.0,111440.0,0.47564525]
[1747892400874,0.00015275,111450.0,111440.0,0.47564525]
[1747892401321,0.0200968,111450.0,111440.0,0.46767238]
[1747892401528,0.20852177,111450.0,111440.0,0.45869951]
[1747892401743,0.23969424,111450.0,111440.0,0.001]
[1747892401972,0.00415275,111450.0,111440.0,0.00090164]
[1747892402179,0.00415275,111450.0,111440.0,0.46758672]
[1747892403417,0.01312473,111450.0,111440.0,0.46758672]
[1747892403595,0.01312465,111450.0,111440.0,0.46758672]
[1747892404286,0.00415275,111450.0,111440.0,0.46758672]
[1747892404774,0.00415275,111450.0,111440.0,0.48968672]
[1747892404989,0.00415275,111450.0,111440.0,0.7499837]
[1747892405223,0.00415275,111450.0,111440.0,0.48968672]
[1747892406097,0.00215275,111450.0,111440.0,0.46668508]
[1747892406317,0.00015275,111450.0,111440.0,0.46668508]
[1747892406756,0.00015275,111450.0,111440.0,0.46768508]
[1747892407235,0.00015275,111450.0,111440.0,1.88795362]
[1747892407456,0.00015275,111450.0,111440.0,1.50600762]
[1747892408284,0.00015275,111450.0,111440.0,1.48350762]
[1747892408442,0.00015275,111450.0,111440.0,0.46868508]
[1747892408856,0.17960541,111450.0,111440.0,0.45971221]
[1747892409377,0.00015275,111450.0,111440.0,0.46868508]
[1747892410186,0.00015275,111450.0,111440.0,0.72898206]
[1747892410735,0.00015275,111450.0,111440.0,0.75188206]
[1747892410928,0.00015275,111450.0,111440.0,0.46868508]
[1747892412290,0.00015275,111450.0,111440.0,0.002]
[1747892412291,0.24405011,111450.0,111440.0,0.002]
[1747892412506,0.33359567,111450.0,111440.0,0.002]
[1747892413162,0.3425683,111450.0,111440.0,0.26229698]
[1747892413837,0.3425683,111450.0,111440.0,0.07145656]
[1747892414054,0.21275409,111440.0,111430.0,0.26029698]
[1747892414430,0.22172696,111440.0,111430.0,0.26029698]
[1747892414852,0.1794813,111440.0,111430.0,0.46670361]
[1747892415061,0.20360541,111450.0,111440.0,0.1884422]
[1747892415264,0.21157731,111450.0,111440.0,0.45771253]
[1747892415466,0.21954937,111450.0,111440.0,0.43976575]
[1747892415673,0.21954937,111450.0,111440.0,0.4487391]
[1747892416316,0.21954937,111450.0,111440.0,0.26029698]
[1747892416467,0.22852152,111450.0,111440.0,0.27824376]
[1747892417018,0.24646638,111450.0,111440.0,0.26029698]
[1747892417175,0.26926638,111450.0,111440.0,0.26029698]
[1747892417369,0.26029383,111450.0,111440.0,0.26029698]
[1747892417574,0.2692663,111450.0,111440.0,0.26029698]
[1747892417771,0.17960541,111450.0,111440.0,0.45871221]
[1747892417973,0.17960541,111450.0,111440.0,0.79871229]
[1747892418179,0.19754937,111450.0,111440.0,0.82303761]
[1747892418354,0.23879407,111450.0,111440.0,0.62562262]
[1747892418565,0.2534216,111450.0,111440.0,0.61924368]
[1747892418765,0.2534216,111450.0,111440.0,0.62821687]
[1747892419420,0.21187731,111450.0,111440.0,0.81665875]
[1747892419744,0.22982152,111450.0,111440.0,0.53841547]
[1747892419943,0.22982152,111450.0,111440.0,0.79871245]
[1747892420570,0.22982152,111450.0,111440.0,0.80768564]
[1747892420770,0.22982152,111450.0,111440.0,0.79871245]
[1747892420973,0.22982152,111450.0,111440.0,0.80768564]
[1747892421207,0.22982152,111450.0,111440.0,0.60129698]
[1747892421412,0.25172152,111450.0,111440.0,0.61027033]
[1747892422213,0.26069383,111450.0,111440.0,0.61027033]
[1747892422370,0.25172152,111450.0,111440.0,0.61027033]
[1747892423002,0.00015275,111450.0,111440.0,1.08354458]
[1747892423209,0.00015275,111450.0,111440.0,1.19619014]
[1747892423417,0.00015275,111450.0,111440.0,1.55211514]
[1747892423770,0.00015275,111450.0,111440.0,1.40979214]
[1747892423987,0.00015275,111450.0,111440.0,1.21829014]
[1747892424611,0.00015275,111450.0,111440.0,2.06251514]
[1747892424818,0.00015275,111450.0,111440.0,1.69236114]
[1747892425209,0.00015275,111450.0,111440.0,1.62737114]
[1747892425424,0.00015275,111450.0,111440.0,1.43011514]
[1747892425641,0.00015275,111450.0,111440.0,1.31855214]
[1747892427339,0.00015275,111450.0,111440.0,1.34365013]
[1747892428428,0.24104822,111480.0,111470.0,0.19736211]
[1747892428647,0.23678816,111480.0,111470.0,0.269268]
[1747892428913,0.26865813,111480.0,111470.0,0.26029698]
[1747892429167,0.25968912,111480.0,111460.0,0.46663401]
[1747892429405,0.26807459,111480.0,111470.0,0.26029698]
[1747892429819,0.26807459,111480.0,111470.0,0.26129698]
[1747892429820,0.27107459,111480.0,111470.0,0.26129698]
[1747892430859,0.34268029,111480.0,111470.0,0.001]
[1747892431070,0.17943656,111460.0,111450.0,0.80666616]
[1747892431284,0.21070782,111460.0,111450.0,0.80666624]
[1747892431841,0.21070782,111460.0,111450.0,0.81563847]
[1747892432064,0.003,111480.0,111470.0,0.53736243]
[1747892432446,0.25061364,111480.0,111470.0,0.60029698]
[1747892432649,0.25958345,111480.0,111470.0,0.60029698]
[1747892433037,0.25958345,111480.0,111470.0,0.79765925]
[1747892433250,0.26258337,111480.0,111470.0,0.80762995]
[1747892433463,0.24464415,111480.0,111470.0,0.60129698]
[1747892433703,0.60326995,111480.0,111470.0,0.001]
[1747892433913,0.6178108,111480.0,111470.0,0.001]
[1747892434525,0.62619427,111480.0,111470.0,0.001]
[1747892434765,0.62919427,111480.0,111470.0,0.002]
[1747892439853,0.90949125,111480.0,111470.0,0.002]
[1747892440057,0.24213279,111430.0,111420.0,0.03166852]
[1747892440276,1.25007618,111430.0,111420.0,0.03182127]
[1747892440486,1.25845965,111430.0,111420.0,0.03182127]
[1747892440688,0.35460267,111430.0,111420.0,0.03182127]
[1747892440897,0.99816267,111430.0,111420.0,0.03182127]
[1747892441140,1.01816267,111430.0,111420.0,0.00015275]
[1747892441486,1.02016267,111430.0,111420.0,0.00015275]
[1747892441904,1.02874944,111430.0,111420.0,0.00015275]
[1747892442709,1.03074944,111430.0,111420.0,0.00015275]
[1747892442854,1.12027095,111430.0,111420.0,0.00015275]
[1747892443990,1.37056793,111430.0,111420.0,0.00015275]
[1747892444388,1.38386632,111430.0,111420.0,0.00015275]
[1747892447101,0.19753899,111370.0,111360.0,0.60029698]
[1747892447282,0.20651718,111370.0,111360.0,0.60029698]
[1747892447483,0.21549673,111370.0,111360.0,0.60029698]
[1747892447711,0.21549721,111370.0,111360.0,0.60029698]
[1747892448263,0.19753963,111370.0,111360.0,0.60029698]
[1747892448461,0.19853963,111370.0,111360.0,0.60480635]
[1747892449102,0.19853963,111370.0,111360.0,0.60680635]
[1747892449319,0.19953963,111370.0,111360.0,0.60680635]
[1747892450850,0.19853931,111370.0,111360.0,0.60280635]
[1747892451047,0.19853931,111370.0,111360.0,0.60180635]
[1747892451517,0.19953931,111370.0,111360.0,0.60280635]
[1747892451701,0.63113944,111370.0,111360.0,0.00250937]
[1747892454046,0.21937464,111350.0,111340.0,0.26250937]
[1747892454285,0.48865464,111350.0,111340.0,0.26266216]
[1747892455300,0.48865464,111350.0,111340.0,0.26466216]
[1747892455301,0.49065464,111350.0,111340.0,0.26466216]
[1747892457990,0.19957464,111350.0,111340.0,0.26244977]
[1747892458213,0.47787533,111350.0,111340.0,0.26244977]
[1747892458446,0.47787533,111350.0,111340.0,0.00215279]
[1747892458447,0.67308292,111350.0,111340.0,0.00215279]
[1747892458677,0.19766274,111300.0,111290.0,0.28339698]
[1747892458947,0.19766323,111300.0,111290.0,0.26034792]
[1747892459171,0.2066469,111300.0,111290.0,0.26034792]
[1747892459393,0.19766258,111300.0,111290.0,0.26034792]
[1747892459619,0.19766258,111300.0,111290.0,0.32034792]
[1747892459620,0.20664674,111300.0,111290.0,0.32034792]
[1747892459854,0.20664674,111300.0,111290.0,0.38954056]
[1747892460074,0.20664674,111300.0,111290.0,0.72954056]
[1747892460505,0.20664674,111300.0,111290.0,0.32954056]
[1747892460738,0.21563106,111300.0,111290.0,0.32954056]
[1747892460958,0.17837861,111300.0,111290.0,0.66954056]
[1747892461178,0.17969207,111310.0,111300.0,0.21996387]
[1747892461428,0.18867526,111310.0,111300.0,0.36975898]
[1747892461637,0.18867526,111310.0,111300.0,0.37874354]
[1747892461856,0.17969207,111310.0,111300.0,0.91640677]
[1747892462097,0.17969207,111310.0,111300.0,0.68984047]
[1747892462317,0.17969207,111310.0,111300.0,0.70780967]
[1747892462519,0.17969207,111310.0,111300.0,0.71679407]
[1747892462736,0.001,111310.0,111300.0,0.70780935]
[1747892462930,0.18167837,111310.0,111300.0,0.71679367]
[1747892463133,0.18167837,111310.0,111300.0,0.71679327]
[1747892463864,0.18167837,111310.0,111300.0,0.70780903]
[1747892464296,0.19066156,111310.0,111300.0,0.2517851]
[1747892464520,0.19964483,111310.0,111300.0,0.64127472]
[1747892464736,0.19964483,111310.0,111300.0,0.65025936]
[1747892465404,0.19964483,111310.0,111300.0,0.65025944]
[1747892465590,0.20862818,111310.0,111300.0,0.64127472]
[1747892465848,0.20862818,111310.0,111300.0,0.65025944]
[1747892466061,0.18167837,111310.0,111300.0,0.82995395]
[1747892466242,0.19066172,111310.0,111300.0,0.65025944]
[1747892466453,0.19964499,111310.0,111300.0,0.64127472]
[1747892466794,0.22659616,111310.0,111300.0,0.4]
[1747892467005,0.22659608,111310.0,111300.0,0.4]
[1747892467856,0.21761225,111310.0,111300.0,0.4]
[1747892468694,0.22659608,111310.0,111300.0,0.4]
[1747892468897,0.21761225,111310.0,111300.0,0.4]
[1747892469180,0.226596,111310.0,111300.0,0.4]
[1747892469381,0.20862858,111310.0,111300.0,0.4]
[1747892469537,0.21761233,111310.0,111300.0,0.4]
[1747892470618,0.24334571,111310.0,111300.0,0.4]
[1747892470834,0.25232962,111310.0,111300.0,0.4]
[1747892472796,0.24334603,111310.0,111300.0,0.4]
[1747892473051,0.24334603,111310.0,111300.0,0.34]
[1747892473895,0.20664779,111300.0,111290.0,5.094e-05]
[1747892474076,0.19766323,111300.0,111290.0,5.094e-05]
[1747892474578,0.17969451,111300.0,111290.0,0.52722204]
[1747892474786,0.17969451,111300.0,111290.0,0.53620725]
[1747892475020,0.18867859,111300.0,111290.0,0.33852609]
[1747892475187,0.19866275,111300.0,111290.0,0.33852609]
[1747892475608,0.19866275,111300.0,111290.0,0.32954056]
[1747892475993,0.20764699,111300.0,111290.0,0.32954056]
[1747892476455,0.19866275,111300.0,111290.0,0.33852609]
[1747892476574,0.19866283,111300.0,111290.0,0.33852609]
[1747892477173,0.19866283,111300.0,111290.0,0.00903647]
[1747892477338,0.19067859,111300.0,111290.0,0.00903647]
[1747892477581,0.19966283,111300.0,111290.0,5.094e-05]
[1747892477789,0.19966283,111300.0,111290.0,0.00903647]
[1747892478210,0.19966283,111300.0,111290.0,5.094e-05]
[1747892478985,0.18169451,111300.0,111290.0,0.18874705]
[1747892479192,0.19067867,111300.0,111290.0,0.18874705]
[1747892479435,0.19067867,111300.0,111290.0,0.34903647]
[1747892479742,0.19067867,111300.0,111290.0,0.34005094]
[1747892480090,0.18169451,111300.0,111290.0,0.34903639]
[1747892480301,0.18169451,111300.0,111290.0,0.87620684]
[1747892480530,0.002,111300.0,111290.0,0.87620684]
[1747892480851,0.002,111300.0,111290.0,0.5467173]
[1747892481055,0.18169451,111300.0,111290.0,0.5467173]
[1747892481696,0.18169451,111300.0,111290.0,0.80704366]
[1747892481907,0.18169451,111300.0,111290.0,0.80704374]
[1747892482703,0.18169451,111300.0,111290.0,0.79805862]
[1747892482898,0.18169451,111300.0,111290.0,0.81602878]
[1747892483054,0.18169451,111300.0,111290.0,0.80704374]
[1747892483255,0.002,111300.0,111290.0,0.8597287]
[1747892483726,0.002,111300.0,111290.0,0.88485501]
[1747892484802,0.002,111300.0,111290.0,0.86245501]
[1747892485129,0.002,111300.0,111290.0,1.12689501]
[1747892485627,0.002,111300.0,111290.0,1.64854657]
[1747892485802,0.01073501,111330.0,111320.0,0.20661058]
[1747892486004,0.01073501,111330.0,111310.0,0.68182]
[1747892486005,0.20661009,111320.0,111310.0,0.68182]
[1747892486248,0.17966223,111320.0,111310.0,1.23378427]
[1747892486447,0.19936267,111330.0,111310.0,1.3605607]
[1747892486751,0.01073501,111330.0,111320.0,0.45795448]
[1747892486978,0.01173501,111330.0,111320.0,0.4759198]
[1747892487210,0.001,111330.0,111320.0,0.84106636]
[1747892487385,0.42006998,111340.0,111320.0,0.8500489]
[1747892487606,0.003,111330.0,111320.0,0.58572254]
[1747892487798,0.002,111330.0,111320.0,0.58572254]
[1747892488007,0.19062766,111330.0,111320.0,0.5587746]
[1747892488449,0.18862766,111330.0,111320.0,0.56675738]
[1747892488639,0.18862766,111330.0,111320.0,0.56775738]
[1747892488850,0.18862766,111330.0,111320.0,0.82808374]
[1747892489214,0.19062766,111330.0,111320.0,0.82908374]
[1747892489422,0.19062766,111330.0,111320.0,0.83806644]
[1747892490064,0.19062766,111330.0,111320.0,0.84704906]
[1747892490241,0.19062766,111330.0,111320.0,0.83706644]
[1747892490446,0.1996094,111330.0,111320.0,0.82808374]
[1747892490649,0.19162766,111330.0,111320.0,0.82908374]
[1747892490858,0.19162766,111330.0,111320.0,0.83806644]
[1747892491033,0.2006094,111330.0,111320.0,0.82908374]
[1747892491234,0.003,111330.0,111320.0,0.88176644]
[1747892491453,0.18264609,111330.0,111320.0,0.82908358]
[1747892491858,0.18264609,111330.0,111320.0,0.83806612]
[1747892492648,0.19162766,111330.0,111320.0,0.82010096]
[1747892492855,0.2006094,111330.0,111320.0,0.82908366]
[1747892493493,0.51321013,111330.0,111320.0,0.002]
[1747892493738,0.60275569,111330.0,111320.0,0.002]
[1747892499535,0.24381013,111330.0,111320.0,0.002]
[1747892499767,0.24380964,111330.0,111320.0,0.26232636]
[1747892499988,0.52219162,111330.0,111320.0,0.002]
[1747892500226,0.53117376,111330.0,111320.0,0.01098311]
[1747892500453,0.53117376,111330.0,111320.0,0.002]
[1747892500688,0.26177376,111330.0,111320.0,0.002]
[1747892500910,0.27075606,111330.0,111320.0,0.002]
[1747892501122,0.26177376,111330.0,111320.0,0.002]
[1747892501747,0.27075598,111330.0,111320.0,0.002]
[1747892502295,0.27075663,111330.0,111320.0,0.002]
[1747892502737,0.003,111330.0,111320.0,0.78198859]
[1747892502954,0.003,111330.0,111320.0,0.80893694]
[1747892503612,0.18264609,111330.0,111320.0,0.80893702]
[1747892503851,0.003,111330.0,111320.0,1.85203148]
[1747892504068,0.003,111330.0,111320.0,2.6153853]
[1747892504739,0.002,111330.0,111320.0,2.6143853]
[1747892505254,0.003,111330.0,111320.0,2.6183853]
[1747892505461,0.003,111330.0,111320.0,2.63292615]
[1747892505835,0.001,111330.0,111320.0,2.63168671]
[1747892506012,0.001,111330.0,111320.0,2.63568671]
[1747892506350,0.002,111330.0,111320.0,2.63568671]
[1747892508153,0.002,111330.0,111320.0,2.66559562]
[1747892511555,0.002,111330.0,111320.0,2.69726136]
[1747892514400,0.002,111330.0,111320.0,2.69726136]
[1747892514602,0.002,111330.0,111320.0,2.6975008]
[1747892519407,0.002,111330.0,111320.0,2.63592615]
[1747892521923,0.002,111330.0,111320.0,3.02372615]
[1747892522128,0.002,111330.0,111320.0,2.1008373]
[1747892522337,0.002,111330.0,111320.0,2.7412773]
[1747892522589,0.002,111330.0,111320.0,2.82575045]
[1747892522761,0.002,111330.0,111320.0,2.79771815]
[1747892523938,0.002,111330.0,111320.0,2.7412773]
[1747892525089,0.002,111330.0,111320.0,2.1008373]
[1747892525290,0.002,111330.0,111320.0,2.7412773]
[1747892527089,0.002,111330.0,111320.0,2.7693096]
[1747892527501,0.002,111330.0,111320.0,2.7412773]
[1747892527720,0.09314231,111360.0,111350.0,0.20655492]
[1747892527938,0.0411,111370.0,111360.0,0.01795871]
[1747892528149,0.11294231,111380.0,111370.0,0.54651782]
[1747892528358,0.11294231,111380.0,111370.0,0.63606338]
[1747892528566,0.07184231,111380.0,111370.0,1.11899204]
[1747892528781,0.07184231,111380.0,111370.0,1.09095974]
[1747892528995,0.07193372,111380.0,111370.0,1.11606888]
[1747892529400,9.141e-05,111380.0,111370.0,1.11606888]
[1747892529971,9.141e-05,111380.0,111370.0,1.11706888]
[1747892530183,9.141e-05,111380.0,111370.0,1.13028045]
[1747892530602,9.141e-05,111380.0,111370.0,1.39960045]
[1747892530848,0.00109141,111380.0,111370.0,1.39960045]
[1747892531990,0.11364231,111400.0,111370.0,1.7604642]
[1747892532193,0.11364231,111400.0,111390.0,1.06713347]
[1747892532194,0.07184231,111400.0,111390.0,1.06713347]
[1747892532401,0.043,111410.0,111400.0,0.20646221]
[1747892532573,0.04309153,111410.0,111400.0,1.25532449]
[1747892532791,0.04309153,111410.0,111400.0,0.81666049]
[1747892534063,0.04309153,111410.0,111400.0,0.81601049]
[1747892534513,0.04309153,111410.0,111400.0,0.82940084]
[1747892534961,0.04509153,111410.0,111400.0,0.82940084]
[1747892536210,0.23358383,111410.0,111400.0,0.36326227]
[1747892536449,0.22460862,111410.0,111400.0,0.56972464]
[1747892536662,0.22460862,111410.0,111400.0,0.93154839]
[1747892537089,0.22460862,111410.0,111400.0,0.94052464]
[1747892537519,0.22460862,111410.0,111400.0,0.93154839]
[1747892537748,0.23358391,111410.0,111400.0,0.27371671]
[1747892537960,0.23358391,111410.0,111400.0,0.65345329]
[1747892538169,0.23358391,111410.0,111400.0,0.28269329]
[1747892538405,0.23358391,111410.0,111400.0,0.65345337]
[1747892538621,0.23358391,111410.0,111400.0,0.64447671]
[1747892538841,0.25153529,111410.0,111400.0,0.35339035]
[1747892539055,0.25153529,111410.0,111400.0,0.61371671]
[1747892539697,0.25153529,111410.0,111400.0,0.60032636]
[1747892540328,0.24255992,111410.0,111400.0,0.34]
[1747892541944,0.25153513,111410.0,111400.0,0.60032636]
[1747892542355,0.26051098,111410.0,111400.0,0.60032636]
[1747892543115,0.25153513,111410.0,111400.0,0.60032636]
[1747892543314,0.2605109,111410.0,111400.0,0.60032636]
[1747892545999,0.24255944,111410.0,111400.0,0.60032636]
[1747892546170,0.25153513,111410.0,111400.0,0.60032636]
[1747892546590,0.2605109,111410.0,111400.0,0.60032636]
[1747892548515,0.25153513,111410.0,111400.0,0.60032636]
[1747892548850,0.26051098,111410.0,111400.0,0.34]
[1747892557295,0.18850914,111400.0,111390.0,1.45979814]
[1747892557498,0.22133321,111400.0,111390.0,1.45979814]
[1747892557909,0.23030922,111400.0,111390.0,1.44184617]
[1747892558117,0.22137798,111380.0,111370.0,1.08880692]
[1747892558325,0.0418,111380.0,111370.0,1.19630974]
[1747892558532,0.0418,111380.0,111370.0,0.34987192]
[1747892558533,0.23932093,111380.0,111370.0,0.34987192]
[1747892558709,0.23034299,111380.0,111370.0,1.18733139]
[1747892558859,0.22136545,111380.0,111370.0,1.11574333]
[1747892559059,0.23034299,111380.0,111370.0,1.24922543]
[1747892559260,0.23034299,111380.0,111370.0,1.24922535]
[1747892559566,0.24929855,111380.0,111370.0,1.25753353]
[1747892559765,0.24132069,111380.0,111370.0,1.26153353]
[1747892559968,0.22336545,111380.0,111370.0,1.45009417]
[1747892560222,0.22336545,111380.0,111370.0,1.4770305]
[1747892560433,0.22336545,111380.0,111370.0,1.47703058]
[1747892560636,0.22336545,111380.0,111370.0,1.20783058]
[1747892560865,0.0438,111380.0,111370.0,0.83711058]
[1747892561238,0.002,111380.0,111370.0,0.84608909]
[1747892561819,0.0436,111380.0,111370.0,0.84608917]
[1747892562587,0.0436,111380.0,111370.0,0.87126127]
[1747892563578,0.25907674,111380.0,111370.0,0.64678563]
[1747892563750,0.25009904,111380.0,111370.0,0.36128717]
[1747892563973,0.25009954,111380.0,111370.0,0.36128717]
[1747892564175,0.25907781,111380.0,111370.0,0.36128717]
[1747892564395,0.24112143,111380.0,111370.0,0.36128717]
[1747892564600,0.23214299,111380.0,111370.0,0.28161353]
[1747892564814,0.25907707,111380.0,111370.0,0.28161353]
[1747892565041,0.25907707,111380.0,111370.0,0.26832636]
[1747892565665,0.23214372,111380.0,111370.0,0.008]
[1747892566049,0.30398603,111380.0,111370.0,0.008]
[1747892566718,0.30398603,111380.0,111360.0,0.26032636]
[1747892566719,0.23883899,111370.0,111360.0,0.26032636]
[1747892566915,0.2208977,111360.0,111350.0,1.22485497]
[1747892567134,0.22987685,111360.0,111350.0,1.56574636]
[1747892567345,0.22987685,111360.0,111350.0,1.5747268]
[1747892567978,0.22987685,111360.0,111350.0,1.58379874]
[1747892568526,0.2208977,111360.0,111350.0,1.58379866]
[1747892568777,0.22987685,111360.0,111350.0,1.5748183]
[1747892568970,0.23087693,111360.0,111350.0,1.57083777]
[1747892569173,0.2218977,111360.0,111350.0,1.57981813]
[1747892569586,0.2228977,111360.0,111350.0,1.50625309]
[1747892569888,0.23187693,111360.0,111350.0,1.48829229]
[1747892570097,0.2228977,111360.0,111350.0,1.51523362]
[1747892570442,0.2228977,111360.0,111350.0,1.50625326]
[1747892570641,0.2228977,111360.0,111350.0,1.51523362]
[1747892572522,0.2228977,111360.0,111350.0,1.57523362]
[1747892573038,0.2228977,111360.0,111350.0,1.56625326]
[1747892573331,0.2228977,111360.0,111350.0,1.57523362]
[1747892573631,0.2228977,111360.0,111350.0,1.5842139]
[1747892574003,0.2228977,111360.0,111350.0,1.41562249]
[1747892574185,0.2228977,111360.0,111350.0,1.40664221]
[1747892574603,0.2228977,111360.0,111350.0,1.40664213]
[1747892574930,0.2228977,111360.0,111350.0,1.37970088]
[1747892575167,0.002,111360.0,111350.0,1.74753369]
[1747892575351,0.21944933,111390.0,111380.0,0.19752175]
[1747892575568,0.22842615,111390.0,111380.0,0.44887]
[1747892575776,0.25137552,111400.0,111380.0,0.5137988]
[1747892575980,0.22910914,111400.0,111390.0,0.46007452]
[1747892576148,0.23808523,111400.0,111390.0,0.26930382]
[1747892576348,0.23808523,111400.0,111390.0,0.26032636]
[1747892576565,0.24706148,111400.0,111390.0,0.26032636]
[1747892576767,0.22910914,111400.0,111390.0,0.26930382]
[1747892576965,0.22910914,111400.0,111390.0,0.2782812]
[1747892577145,0.23808523,111400.0,111390.0,0.26930382]
[1747892577346,0.23808523,111400.0,111390.0,0.2782812]